bitfinex/quotes_ETHUSD_20250114
["timestamp","ask_amount","ask_price","bid_price","bid_amount"]
[1736878137947,0.55,3227.2,3226.4,3.09939]
[1736878138149,0.55,3227.2,3226.2,3.09961]
[1736878138354,0.55,3227.0,3226.2,3.09961]
[1736878138520,3.55,3227.0,3226.2,3.09961]
[1736878138725,0.55,3227.1,3226.2,3.09961]
[1736878139968,0.55,3227.1,3226.3,3.09948]
[1736878140121,0.199,3227.0,3226.2,0.309961]
[1736878140321,0.5722,3226.9,3226.0,3.09971]
[1736878140757,0.7712,3226.9,3226.2,3.09962]
[1736878140957,3.0,3226.8,3226.0,3.09978]
[1736878141266,0.55,3226.7,3225.9,0.7979]
[1736878141427,0.55,3226.8,3226.0,0.02998956]
[1736878141622,0.0222,3226.9,3225.9,0.7979]
[1736878141818,0.5722,3226.9,3226.0,0.389785]
[1736878142057,3.0993,3226.6,3225.8,0.60673424]
[1736878142219,3.55,3226.3,3225.3,0.7507]
[1736878142554,0.55,3226.2,3225.5,3.706137]
[1736878142755,0.55,3226.2,3225.5,0.605927]
[1736878143760,0.0222,3226.4,3225.3,0.7507]
[1736878143939,0.0222,3226.4,3225.4,3.10038]
[1736878143940,0.55,3226.2,3225.4,3.10038]
[1736878144276,0.0222,3226.4,3225.5,3.485308]
[1736878144568,0.0222,3226.4,3225.6,3.13010811]
[1736878144821,0.199,3226.5,3225.6,0.7507]
[1736878144987,3.09909,3226.8,3225.8,3.09993]
[1736878145190,3.29809,3226.8,3225.8,3.09993]
[1736878145389,0.0222,3226.9,3226.2,3.09953]
[1736878145592,0.0222,3226.9,3226.3,3.09943]
[1736878145904,0.0222,3226.9,3225.8,0.385063]
[1736878146238,3.09907,3226.8,3225.8,3.09993]
[1736878146382,3.09907,3226.8,3225.9,3.09989]
[1736878146587,0.0222,3226.9,3225.8,0.61213969]
[1736878146840,3.09924,3226.6,3225.6,3.85083]
[1736878147050,3.09924,3226.6,3225.3,3.85117]
[1736878147051,0.0222,3226.6,3225.3,3.85117]
[1736878147349,3.09969,3226.2,3225.3,4.47802936]
[1736878147510,3.12203,3226.0,3225.3,0.62685936]
[1736878147838,3.12203,3226.0,3224.7,3.10103]
[1736878147839,0.06095035,3226.0,3224.7,3.10103]
[1736878148036,3.09991,3225.9,3224.7,3.10103]
[1736878148239,3.0,3225.9,3224.8,0.385173]
[1736878148407,3.10021,3225.6,3224.8,1.01346085]
[1736878148594,3.0,3225.9,3224.8,0.62828785]
[1736878148595,6.55814177,3225.9,3224.8,0.62828785]
[1736878148937,3.10026,3225.6,3224.8,0.62828785]
[1736878149290,6.55814177,3225.9,3224.8,0.62828785]
[1736878149492,3.10016,3225.7,3224.8,0.62828785]
[1736878149734,6.55814177,3225.9,3224.8,0.62828785]
[1736878149941,0.0222,3225.3,3224.6,0.7507]
[1736878150243,0.0222,3225.3,3224.6,0.685194]
[1736878150390,0.0222,3225.3,3224.3,0.7507]
[1736878150595,3.10077,3225.0,3224.2,0.62108329]
[1736878150906,3.10092,3224.9,3224.2,0.62108329]
[1736878151102,6.65891177,3225.0,3223.5,4.36504421]
[1736878151300,0.06096679,3224.9,3223.5,7.46722421]
[1736878151532,3.0,3224.8,3223.6,1.35784525]
[1736878151738,3.10133,3224.5,3223.6,1.35784525]
[1736878152904,3.10107,3224.7,3223.7,3.10202]
[1736878153141,6.12314,3224.9,3223.6,1.35784525]
[1736878153344,3.10097,3224.8,3223.8,3.10186]
[1736878153558,3.10113,3224.7,3223.6,4.45992525]
[1736878153712,6.12311,3224.9,3223.8,3.1019]
[1736878154062,3.10108,3224.7,3223.7,3.62306253]
[1736878154334,0.03876643,3224.7,3223.6,0.61112283]
[1736878154502,3.10118,3224.6,3223.6,3.71320283]
[1736878155033,0.03876849,3224.5,3223.6,0.61112283]
[1736878155238,3.10161,3224.2,3223.1,3.85328]
[1736878155410,3.30061,3224.2,3223.1,3.85328]
[1736878155603,3.10166,3224.1,3223.1,4.55879232]
[1736878156302,0.23777379,3224.2,3223.2,0.62429332]
[1736878156303,0.199,3224.2,3223.2,0.62429332]
[1736878156505,3.30054,3224.2,3223.2,0.62429332]
[1736878157823,3.30054,3224.2,3223.3,3.10238]
[1736878158350,3.30054,3224.2,3223.2,0.62429332]
[1736878158562,3.30054,3224.2,3223.2,3.72679332]
[1736878158855,0.199,3224.3,3223.5,3.1022]
[1736878159210,0.199,3224.3,3223.2,4.17447865]
[1736878159409,3.10164,3224.1,3223.2,1.07204865]
[1736878159808,0.199,3224.3,3223.2,1.07204865]
[1736878160059,0.0222,3224.1,3222.8,3.0]
[1736878160261,3.10194,3223.8,3222.8,6.10288]
[1736878160763,3.12384,3224.1,3222.2,3.10345]
[1736878160764,3.10241,3223.3,3222.2,3.10345]
[1736878160903,3.10241,3223.3,3222.3,0.7949]
[1736878160904,3.14130388,3223.2,3222.3,0.7949]
[1736878161108,0.199,3223.3,3222.3,3.89825]
[1736878161338,3.30141,3223.3,3222.3,4.92208111]
[1736878161523,3.0,3223.2,3222.3,4.92208111]
[1736878162416,3.0,3223.2,3222.3,4.53225611]
[1736878162643,3.10251,3223.2,3222.3,4.53225611]
[1736878162942,3.10292,3222.8,3221.9,3.10371]
[1736878163146,0.0222,3222.7,3222.0,0.7949]
[1736878163852,3.1249,3223.0,3222.0,3.89854]
[1736878164056,3.1249,3223.0,3222.0,4.35039621]
[1736878164378,3.1249,3223.0,3222.0,0.7949]
[1736878164379,3.10298,3222.7,3222.0,0.7949]
[1736878164585,0.0222,3223.0,3222.0,0.7949]
[1736878164766,3.10291,3222.8,3222.0,0.7949]
[1736878165775,3.10299,3222.7,3221.8,0.60954642]
[1736878166355,0.0222,3223.0,3221.8,3.71332642]
[1736878166560,3.10294,3222.8,3221.8,3.71332642]
[1736878168054,0.06099318,3223.0,3221.8,0.60954642]
[1736878168387,3.10297,3222.8,3221.9,3.10375]
[1736878168779,0.0222,3223.0,3222.0,3.10357]
[1736878168959,0.0222,3223.0,3221.8,0.60954642]
[1736878168960,0.0222,3223.0,3222.2,3.10345]
[1736878169569,3.12494,3223.0,3222.0,3.10361]
[1736878170273,0.197,3222.9,3222.0,3.10361]
[1736878170845,0.197,3223.1,3222.1,0.7949]
[1736878171048,0.197,3223.1,3222.2,3.10345]
[1736878171247,3.29961,3223.1,3222.2,3.10345]
[1736878171854,0.197,3223.1,3222.1,0.7949]
[1736878172049,3.1029,3222.8,3222.1,0.7949]
[1736878172449,3.1029,3222.8,3221.8,1.40444642]
[1736878173452,0.06099205,3223.0,3221.8,1.40444642]
[1736878173658,3.16376205,3223.0,3222.0,3.10365]
[1736878173875,0.0222,3222.8,3221.3,3.89922]
[1736878174206,3.0,3222.4,3221.3,3.8992]
[1736878174385,3.12568,3222.2,3221.3,0.7949]
[1736878174700,0.23579904,3222.1,3221.3,0.7949]
[1736878175056,0.197,3222.1,3221.3,0.7949]
[1736878175257,0.197,3222.1,3221.3,3.89921]
[1736878175789,0.197,3222.5,3221.5,0.7949]
[1736878175968,0.197,3222.5,3221.5,3.89902]
[1736878176288,0.197,3222.5,3221.5,0.7949]
[1736878176462,0.197,3222.5,3221.7,3.10386]
[1736878176665,0.197,3222.5,3221.5,0.7949]
[1736878176893,0.197,3222.5,3221.5,3.89899]
[1736878177099,3.10333,3222.4,3221.5,3.89899]
[1736878177759,0.197,3222.5,3221.5,3.89899]
[1736878177760,3.10338,3222.3,3221.5,0.7949]
[1736878178717,0.03879784,3222.2,3221.2,0.7949]
[1736878179016,3.10374,3222.0,3221.1,3.10452]
[1736878179199,6.10349,3222.2,3221.2,3.10438]
[1736878179403,3.10366,3222.0,3221.0,3.10458]
[1736878179592,0.03880111,3221.9,3221.0,3.10458]
[1736878179982,3.10366,3222.0,3221.0,3.10458]
[1736878180177,0.0222,3222.0,3220.9,1.42001077]
[1736878180409,3.0,3221.9,3220.9,0.7949]
[1736878180606,3.10405,3221.6,3220.9,0.7949]
[1736878180822,3.55814177,3221.4,3219.9,3.90058]
[1736878180988,3.10455,3221.1,3220.2,3.10534]
[1736878181319,2.87635,3221.1,3220.2,3.10534]
[1736878181778,3.55814177,3221.7,3220.5,3.10507]
[1736878181979,3.55814177,3221.9,3220.6,0.7949]
[1736878182217,3.30085,3221.8,3220.6,0.7949]
[1736878182386,0.197,3221.7,3220.8,3.1048]
[1736878182576,3.30096,3221.7,3220.8,3.1048]
[1736878182985,0.197,3221.7,3220.9,3.10471]
[1736878183185,3.30095,3221.7,3220.8,3.10473]
[1736878183381,0.197,3222.4,3221.0,0.7949]
[1736878183696,3.30025,3222.5,3221.6,3.89893]
[1736878183884,3.10337,3222.3,3221.6,0.7949]
[1736878184221,3.55814177,3222.2,3221.2,1.4154479]
[1736878184417,0.197,3222.5,3221.2,1.4154479]
[1736878184638,3.0,3222.2,3221.4,3.10423]
[1736878185008,2.99626733,3222.2,3221.4,3.10423]
[1736878185318,3.75514177,3222.5,3221.2,3.89929]
[1736878185620,3.10377,3221.9,3221.2,0.7949]
[1736878185993,3.10358,3222.1,3221.2,3.89932]
[1736878186199,3.10358,3222.1,3221.2,4.35070981]
[1736878187254,3.0,3222.2,3221.2,1.24628981]
[1736878187401,3.197,3222.5,3221.3,3.65432]
[1736878187720,3.10337,3222.3,3221.3,3.65432]
[1736878188859,3.59694057,3222.2,3221.2,0.7949]
[1736878189154,3.10397,3221.7,3220.8,0.81]
[1736878189296,3.10397,3221.7,3220.9,0.55]
[1736878189694,3.10397,3221.7,3220.8,3.91478]
[1736878190300,3.10406,3221.6,3220.8,0.81]
[1736878190698,3.23580611,3221.5,3220.3,0.81]
[1736878190902,3.197,3221.5,3220.3,3.91526]
[1736878191123,3.10442,3221.3,3220.4,3.6552]
[1736878191913,6.30121,3221.5,3220.5,3.10509]
[1736878192129,3.197,3221.5,3220.5,3.10509]
[1736878192339,3.10424,3221.4,3220.5,3.10509]
[1736878193139,3.10453,3221.1,3220.3,0.81]
[1736878193302,0.03881111,3221.1,3220.3,0.81]
[1736878193517,3.10462,3221.0,3220.3,0.81]
[1736878194217,6.10447,3221.2,3220.3,0.81]
[1736878195319,3.0,3221.2,3220.3,3.91527]
[1736878195524,0.197,3221.2,3220.5,3.1051]
[1736878195926,0.197,3221.2,3220.3,4.306787]
[1736878196119,0.197,3221.2,3220.4,3.10518]
[1736878196324,0.197,3221.2,3220.4,3.5358507]
[1736878196933,0.197,3221.2,3220.3,1.201527]
[1736878197358,0.197,3221.2,3220.3,0.81]
[1736878197715,0.197,3221.2,3220.4,3.10513]
[1736878198158,3.10408,3221.6,3220.6,3.10499]
[1736878198333,0.195,3221.5,3220.8,0.81]
[1736878198854,0.195,3221.5,3220.8,3.91478]
[1736878199067,0.195,3221.5,3220.9,3.65472]
[1736878199272,0.195,3221.5,3220.9,0.55]
[1736878199422,0.195,3221.5,3221.1,3.10451]
[1736878199620,0.195,3221.5,3220.9,3.65468]
[1736878200271,0.195,3221.5,3220.8,1.201478]
[1736878200561,0.195,3221.5,3220.6,3.20184321]
[1736878200562,3.75314177,3221.5,3220.6,3.20184321]
[1736878200980,3.10438,3221.3,3220.4,3.10516]
[1736878201193,0.195,3221.5,3220.7,0.7717]
[1736878201398,0.195,3221.5,3220.8,0.55]
[1736878201581,0.195,3221.5,3221.0,3.10455]
[1736878201781,0.195,3221.5,3221.0,3.470005]
[1736878202095,3.1034,3222.3,3221.0,3.470005]
[1736878202096,3.29886,3221.8,3221.0,0.365455]
[1736878202301,3.10412,3221.6,3220.8,3.20184321]
[1736878202652,3.10415,3221.5,3220.8,3.20184321]
[1736878202850,3.29915,3221.5,3220.8,3.20184321]
[1736878203090,0.195,3221.5,3220.7,0.7717]
[1736878203249,3.10432,3221.4,3220.7,0.7717]
[1736878203446,0.195,3221.5,3220.7,0.7717]
[1736878203647,0.195,3221.5,3220.8,3.1048]
[1736878203869,3.10385,3221.9,3220.9,3.49235]
[1736878204154,3.29887,3221.8,3220.9,3.49235]
[1736878204716,3.55814177,3222.8,3221.2,0.55]
[1736878204849,0.195,3222.7,3221.5,0.55]
[1736878205273,0.195,3222.6,3221.5,3.65405]
[1736878205554,3.03879644,3222.7,3221.5,3.65405]
[1736878205780,3.10329,3222.4,3221.5,0.55]
[1736878205948,3.10354,3222.2,3221.4,0.7988]
[1736878206489,3.29854,3222.2,3221.4,0.7988]
[1736878206680,3.10354,3222.2,3221.4,0.7988]
[1736878206993,3.29854,3222.2,3221.4,0.7988]
[1736878208553,3.29854,3222.2,3221.1,3.20291892]
[1736878208554,3.10387,3221.8,3221.1,3.20291892]
[1736878208752,3.10387,3221.8,3221.1,4.00171892]
[1736878208952,3.10387,3221.8,3221.1,0.7988]
[1736878209264,6.10371,3222.0,3221.1,0.7988]
[1736878209770,3.29849,3222.2,3221.2,0.55]
[1736878210251,3.10358,3222.1,3221.2,0.55]
[1736878210789,3.55814177,3222.1,3221.1,0.7988]
[1736878210948,3.55814177,3221.8,3221.1,0.7988]
[1736878211150,3.10401,3221.7,3221.1,0.7988]
[1736878211757,0.03880358,3221.6,3220.5,3.10503]
[1736878211957,3.10451,3221.2,3220.4,0.7988]
[1736878212217,3.29954,3221.1,3220.4,0.7988]
[1736878212503,0.195,3221.1,3220.4,0.7988]
[1736878213123,0.195,3221.1,3220.5,3.65509]
[1736878213407,0.195,3221.3,3220.8,3.90358]
[1736878213807,3.10396,3221.7,3220.8,3.90358]
[1736878213981,0.195,3221.4,3220.8,3.90358]
[1736878214298,0.195,3221.4,3220.8,0.7988]
[1736878214472,3.10443,3221.2,3220.3,0.7988]
[1736878214672,3.10443,3221.2,3220.3,3.90407]
[1736878215102,3.03881144,3221.1,3220.3,0.7988]
[1736878215274,3.55814177,3220.9,3220.0,0.7988]
[1736878215473,3.10503,3220.6,3220.0,0.7988]
[1736878215685,3.30012,3220.5,3220.0,0.7988]
[1736878216581,3.10541,3220.2,3219.4,0.7565]
[1736878217100,0.03882026,3220.1,3219.4,0.7565]
[1736878217297,3.10552,3220.1,3219.4,0.7565]
[1736878217505,6.30014,3220.5,3219.4,0.7565]
[1736878217506,3.0,3220.2,3219.4,0.7565]
[1736878217674,3.10578,3219.9,3219.4,0.7565]
[1736878218893,6.66348177,3220.3,3219.4,0.7565]
[1736878218894,3.10553,3220.1,3219.4,0.7565]
[1736878219106,6.1054,3220.2,3219.4,0.7565]
[1736878219405,0.195,3220.5,3219.4,0.7565]
[1736878219406,3.10524,3220.4,3219.5,0.55]
[1736878219608,0.195,3220.5,3219.5,0.55]
[1736878219795,3.10547,3220.2,3219.4,0.7565]
[1736878220004,3.195,3220.5,3219.4,0.7565]
[1736878220187,3.1053,3220.3,3219.4,0.7565]
[1736878220396,3.1053,3220.3,3219.5,0.55]
[1736878223392,3.1053,3220.3,3219.4,0.7565]
[1736878223590,3.10548,3220.2,3219.4,0.7565]
[1736878223777,3.10556,3220.1,3219.4,0.7565]
[1736878224625,3.10559,3220.0,3219.4,0.7565]
[1736878225227,3.55814177,3219.9,3218.9,0.8294]
[1736878225911,3.10573,3219.9,3218.9,0.8294]
[1736878226107,3.10583,3219.8,3218.9,0.8294]
[1736878228092,3.10583,3219.8,3218.9,3.93604]
[1736878229321,3.10583,3219.8,3218.9,0.8294]
[1736878230080,0.03882753,3220.1,3218.9,0.8294]
[1736878230081,3.10591,3219.7,3218.9,0.8294]
[1736878230301,0.194,3219.6,3218.9,0.8294]
[1736878231114,0.194,3219.6,3218.9,3.93602]
[1736878231507,0.194,3219.6,3218.9,0.8294]
[1736878232237,0.04834484,3219.5,3218.9,0.8294]
[1736878233919,3.15442484,3219.5,3218.9,0.8294]
[1736878234115,2.94109562,3219.4,3218.9,0.8294]
[1736878234621,3.10655,3219.0,3218.2,0.8155]
[1736878234824,3.10665,3218.9,3218.2,0.8155]
[1736878235005,3.15095323,3218.9,3218.2,0.8155]
[1736878235204,6.04795562,3218.7,3218.2,0.8155]
[1736878235404,0.194,3218.6,3218.2,0.8155]
[1736878235608,0.23819966,3218.6,3218.2,0.8155]
[1736878240537,0.04419966,3218.6,3218.2,3.92282]
[1736878240739,0.194,3219.3,3218.5,3.10703]
[1736878240953,0.194,3219.3,3218.2,0.40935047]
[1736878240954,0.04104483,3219.2,3218.7,3.10675]
[1736878241171,0.04104483,3219.2,3218.6,0.8155]
[1736878241670,0.04104483,3219.2,3219.0,3.10651]
[1736878241959,0.194,3219.6,3219.1,0.8155]
[1736878242286,0.04135686,3219.5,3219.1,0.8155]
[1736878242621,0.04135686,3219.5,3219.1,4.314141]
[1736878243057,0.04135686,3219.5,3219.2,3.10627]
[1736878243437,0.04135686,3219.5,3219.4,3.10616]
[1736878243731,3.194,3220.2,3219.3,0.8155]
[1736878243956,0.04053307,3220.1,3219.3,0.8155]
[1736878244120,0.23453307,3220.1,3219.3,0.8155]
[1736878244321,0.23453307,3220.1,3219.3,4.0974901]
[1736878244549,0.23453307,3220.1,3219.3,0.9912701]
[1736878244943,0.23453307,3220.1,3219.3,0.8155]
[1736878245732,3.34002307,3220.1,3219.3,0.8155]
[1736878247575,0.23453307,3220.1,3219.3,0.8155]
[1736878247727,0.03882171,3220.0,3219.3,0.8155]
[1736878248058,3.10593,3219.7,3219.3,0.8155]
[1736878248441,0.03995128,3219.6,3219.3,0.8155]
[1736878248838,3.10559,3220.0,3219.3,0.8155]
[1736878249159,0.04008807,3219.5,3219.3,0.8155]
[1736878249335,0.03999413,3219.4,3219.0,0.7951]
[1736878249670,3.6047847,3219.5,3218.7,0.7951]
[1736878249826,3.10653,3219.1,3218.2,0.7951]
[1736878250232,0.03983894,3219.0,3218.2,3.90239]
[1736878250656,0.03983894,3219.0,3218.3,3.10719]
[1736878251023,3.1063,3219.3,3218.3,3.10719]
[1736878251231,0.03974494,3218.9,3218.6,0.7951]
[1736878251450,3.10566,3220.0,3218.9,3.10657]
[1736878251451,3.10565,3220.0,3218.9,3.10657]
[1736878251667,0.194,3219.9,3219.0,0.7951]
[1736878251859,3.10585,3219.8,3219.0,0.7951]
[1736878252125,0.194,3219.9,3219.0,0.7951]
[1736878252331,3.10588,3219.7,3219.0,0.7951]
[1736878255244,3.10618,3219.4,3218.7,0.7951]
[1736878255733,3.1063,3219.3,3218.7,0.7951]
[1736878256039,3.56595615,3219.5,3218.7,0.7951]
[1736878256040,3.10636,3219.2,3218.7,0.7951]
[1736878256556,3.10636,3219.2,3218.3,0.7951]
[1736878257891,3.10636,3219.2,3218.3,3.90231]
[1736878258057,2.94199492,3219.3,3218.4,3.10713]
[1736878258380,2.94199492,3219.3,3218.4,0.940223]
[1736878258582,3.10638,3219.2,3218.3,3.90225]
[1736878258759,2.94199492,3219.0,3218.1,0.17056469]
[1736878258961,2.94199492,3218.7,3218.1,0.17056469]
[1736878259159,2.98083331,3218.7,3218.1,0.17056469]
[1736878259472,2.94199492,3218.7,3218.1,0.17056469]
[1736878259672,3.29867,3218.9,3218.1,0.17056469]
[1736878260610,0.03925165,3218.8,3218.1,0.17056469]
[1736878260915,3.03925165,3218.8,3218.1,0.17056469]
[1736878261050,3.03925165,3218.8,3217.6,3.20291892]
[1736878261051,3.0,3218.1,3217.6,3.20291892]
[1736878261254,0.03883837,3218.7,3217.5,3.20291892]
[1736878261255,6.1079,3217.6,3217.5,3.20291892]
[1736878261679,6.14532848,3217.6,3217.5,3.20291892]
[1736878261992,6.14532848,3217.6,3217.0,0.7787]
[1736878262163,3.0,3217.4,3217.0,0.7787]
[1736878262370,0.03568046,3217.3,3217.0,0.7787]
[1736878262762,2.94199492,3217.2,3217.0,0.7787]
[1736878262964,0.03586314,3217.1,3217.0,0.7787]
[1736878263604,3.0,3217.2,3217.0,0.7787]
[1736878263756,0.0356688,3217.1,3217.0,0.7787]
[1736878263957,3.10838,3217.1,3217.0,0.7787]
[1736878264154,3.1437975,3217.1,3217.0,0.7787]
[1736878264765,0.0354175,3217.1,3217.0,0.7787]
[1736878265198,3.1437975,3217.1,3217.0,0.7787]
[1736878265401,3.0,3217.0,3216.4,0.7787]
[1736878265601,3.10894,3216.6,3216.4,0.7787]
[1736878265814,3.14366782,3216.5,3216.4,0.7787]
[1736878266188,0.03470782,3216.5,3216.4,0.7787]
[1736878266392,3.10896,3216.5,3216.4,0.7787]
[1736878266609,3.10906,3216.4,3216.3,0.3]
[1736878266991,3.14319881,3216.4,3216.3,0.3]
[1736878267227,0.03413881,3216.4,3216.3,0.3]
[1736878267401,3.14319881,3216.4,3216.3,0.3]
[1736878269322,0.03413881,3216.4,3216.3,1.0787]
[1736878269623,3.10747,3218.1,3216.9,0.7787]
[1736878269624,3.10765,3217.9,3216.9,0.7787]
[1736878269826,0.192,3217.9,3216.9,4.275971]
[1736878270043,0.0321957,3217.8,3216.9,1.167431]
[1736878270231,0.0321957,3217.8,3216.3,0.85]
[1736878270232,0.0321957,3217.8,3217.1,0.7787]
[1736878270543,0.192,3218.6,3217.7,0.7787]
[1736878270718,3.192,3218.5,3217.7,0.7787]
[1736878270908,3.0,3218.4,3217.7,0.7787]
[1736878271857,3.0,3218.2,3217.7,0.7787]
[1736878272025,3.10737,3218.2,3217.7,0.7787]
[1736878272425,3.192,3218.5,3217.7,0.7787]
[1736878272758,3.10703,3218.5,3217.7,0.7787]
[1736878273053,0.192,3218.5,3217.7,0.7787]
[1736878273274,3.29908,3218.5,3217.7,0.7787]
[1736878273758,3.10708,3218.5,3217.7,0.7787]
[1736878273961,3.192,3218.4,3217.7,0.7787]
[1736878274133,3.0,3218.4,3217.7,0.7787]
[1736878274329,3.192,3218.4,3217.7,0.7787]
[1736878274818,3.56932483,3218.2,3217.7,0.7787]
[1736878275018,3.1076,3218.0,3217.2,0.7787]
[1736878276117,3.10762,3217.9,3217.2,0.7787]
[1736878276318,3.0,3217.8,3217.2,0.7787]
[1736878276519,3.0,3217.3,3216.8,0.8252]
[1736878276765,3.0,3217.1,3216.8,0.8252]
[1736878276932,6.56932483,3217.3,3216.8,0.8252]
[1736878277128,6.10833,3217.2,3216.8,0.8252]
[1736878277368,6.14119122,3217.2,3216.8,0.8252]
[1736878278226,3.03286122,3217.2,3216.8,0.8252]
[1736878278622,0.03286122,3217.2,3216.8,0.8252]
[1736878279478,0.192,3217.5,3216.8,0.8252]
[1736878279767,0.0310477,3217.1,3216.8,0.8252]
[1736878279988,0.03100885,3217.0,3216.8,0.8252]
[1736878280195,0.03100885,3217.0,3216.9,3.10858]
[1736878280491,6.67669483,3218.2,3217.2,3.1082]
[1736878280657,0.192,3218.1,3217.3,0.8252]
[1736878280837,0.22373485,3218.1,3217.3,0.8252]
[1736878281195,3.33116485,3218.1,3217.3,0.8252]
[1736878281360,0.22373485,3218.1,3217.3,0.8252]
[1736878281698,0.03173485,3218.1,3217.3,1.21854]
[1736878281838,0.03173485,3218.1,3217.9,0.8252]
[1736878282033,3.56932483,3218.3,3217.9,0.8252]
[1736878282236,3.56932483,3218.3,3217.0,3.10843]
[1736878282237,3.0,3218.2,3217.2,3.10823]
[1736878282473,3.07054131,3218.2,3217.1,0.8252]
[1736878282647,6.67686483,3218.0,3217.1,0.8252]
[1736878282970,3.0,3217.7,3217.1,0.8252]
[1736878283170,0.03167139,3217.6,3217.1,0.8252]
[1736878283890,0.07052165,3217.6,3217.1,0.8252]
[1736878284186,3.56932483,3217.4,3216.7,0.8252]
[1736878284387,0.0314725,3217.3,3216.7,0.8252]
[1736878285065,0.0314725,3217.3,3216.7,3.93394]
[1736878285367,0.03114413,3217.2,3216.8,0.8252]
[1736878285561,6.76132483,3217.7,3216.8,0.8252]
[1736878285784,9.67742483,3217.4,3216.8,0.8252]
[1736878285967,0.03082335,3217.3,3216.8,0.8252]
[1736878286164,3.0,3217.0,3216.4,0.8252]
[1736878286486,0.03099276,3216.9,3216.4,0.8252]
[1736878288257,3.0,3217.1,3216.4,0.8252]
[1736878288477,0.03054899,3216.8,3216.3,3.4091]
[1736878288691,0.0341,3217.2,3216.4,3.10905]
[1736878288861,0.03049912,3216.7,3216.4,3.10905]
[1736878289061,0.03049912,3216.7,3216.6,3.10887]
[1736878289261,3.56932483,3217.4,3216.6,3.10887]
[1736878289456,0.195,3217.5,3216.9,3.10854]
[1736878289691,0.195,3217.5,3216.9,3.501914]
[1736878289692,0.03000335,3217.3,3216.9,3.501914]
[1736878289903,0.03013539,3217.4,3216.9,0.393374]
[1736878290072,0.03014843,3217.2,3216.9,0.393374]
[1736878290260,0.03014843,3217.2,3216.8,0.8252]
[1736878290261,0.03018727,3217.3,3216.8,0.8252]
[1736878290463,0.03018727,3217.3,3216.9,3.10858]
[1736878290674,0.03018727,3217.3,3216.8,3.93384]
[1736878290675,0.195,3217.7,3217.1,3.10837]
[1736878290896,0.03014843,3217.2,3217.1,3.10837]
[1736878291084,0.195,3217.7,3217.1,3.10837]
[1736878291292,0.195,3217.7,3216.8,0.8252]
[1736878291611,3.0,3217.5,3216.8,0.8252]
[1736878291784,0.03022611,3217.4,3216.8,0.8252]
[1736878292571,0.195,3217.3,3216.8,0.8252]
[1736878292902,0.03014843,3217.2,3216.9,3.10855]
[1736878293207,3.03014843,3217.2,3216.5,0.79]
[1736878294072,0.03014843,3217.2,3216.7,3.10868]
[1736878296704,0.03014843,3217.2,3216.5,0.79]
[1736878297081,0.03014843,3217.2,3216.6,3.10886]
[1736878297289,0.03014843,3217.2,3216.7,0.389886]
[1736878297500,0.195,3217.3,3216.9,3.10855]
[1736878297696,3.0,3217.8,3216.8,0.79]
[1736878298012,0.23384825,3217.7,3216.8,0.79]
[1736878298211,3.0,3217.3,3216.5,3.10894]
[1736878298524,3.13855411,3217.2,3216.4,0.79]
[1736878298719,0.03022411,3217.2,3216.4,0.79]
[1736878298880,0.03022411,3217.2,3216.4,4.07028223]
[1736878299082,3.03022411,3217.2,3216.4,4.07028223]
[1736878299718,3.03022411,3217.2,3216.4,0.96130223]
[1736878299881,0.03022411,3217.2,3216.5,3.10895]
[1736878301535,0.03022411,3217.2,3216.6,3.10886]
[1736878302385,0.03022411,3217.2,3216.6,0.40701622]
[1736878302636,0.195,3217.5,3217.0,3.10848]
[1736878302987,0.0291313,3217.4,3217.0,3.10848]
[1736878303182,0.03885069,3217.5,3216.7,0.79]
[1736878303424,0.195,3217.6,3216.7,0.79]
[1736878303605,3.1082,3217.3,3216.7,0.79]
[1736878303789,0.02813624,3217.2,3216.7,0.79]
[1736878304123,3.10838,3217.1,3216.4,0.79]
[1736878304291,3.0341,3217.0,3216.4,0.79]
[1736878304490,0.0622421,3217.0,3216.3,3.40913]
[1736878305226,0.0281421,3217.0,3216.3,0.3]
[1736878305404,3.60342483,3216.7,3216.3,0.3]
[1736878305728,0.22317898,3216.6,3216.3,0.3]
[1736878306290,3.10903,3216.5,3216.3,0.3]
[1736878306628,3.02752324,3216.4,3216.3,0.3]
[1736878307326,6.13658324,3216.4,3216.3,0.3]
[1736878308029,6.10906,3216.4,3216.3,0.3]
[1736878308895,6.13688154,3216.4,3216.3,0.3]
[1736878309316,0.02782154,3216.4,3216.3,0.3]
[1736878309488,3.13688154,3216.4,3216.3,0.3]
[1736878310248,3.10906,3216.4,3216.3,0.3]
[1736878311092,3.13688154,3216.4,3216.3,0.3]
[1736878311596,6.10901,3216.5,3216.3,0.3]
[1736878311794,6.13820652,3216.5,3216.3,0.3]
[1736878314458,6.10901,3216.5,3216.3,0.3]
[1736878316237,3.0,3216.5,3216.3,0.3]
[1736878318518,6.10899,3216.5,3216.3,0.3]
[1736878318717,5.94665835,3216.4,3216.3,0.3]
[1736878319464,9.08981835,3216.4,3216.3,0.3]
[1736878320757,5.94665835,3216.4,3216.3,0.3]
[1736878321246,3.0,3216.4,3216.3,0.3]
[1736878321649,0.0341,3217.0,3216.3,0.3]
[1736878321840,0.191,3217.2,3216.5,3.10893]
[1736878322348,0.191,3217.2,3216.6,0.8182]
[1736878322546,0.191,3217.2,3216.6,3.92704]
[1736878322716,0.191,3217.2,3216.6,0.8182]
[1736878323372,3.0,3217.3,3216.6,3.92705]
[1736878323513,3.14193,3217.7,3216.8,3.10866]